bitfinex/quotes_SOLUSD_20251106
["timestamp","ask_amount","ask_price","bid_price","bid_amount"]
[1762443531607,0.7,156.76,156.69,7.00635347]
[1762443531608,7.00635347,156.74,156.69,7.00635347]
[1762443531791,7.00635347,156.72,156.67,7.00635347]
[1762443531988,7.00635347,156.75,156.69,7.00635347]
[1762443532202,7.70635347,156.74,156.68,7.00635347]
[1762443532711,22.33282286,156.72,156.63,0.66]
[1762443532926,29.33917633,156.72,156.67,7.00635347]
[1762443533126,7.66635347,156.71,156.65,7.00635347]
[1762443533330,0.66,156.71,156.66,7.00635347]
[1762443533833,0.66,156.71,156.68,7.00635347]
[1762443533991,0.66,156.71,156.67,7.00635347]
[1762443534512,0.66,156.71,156.68,7.00635347]
[1762443534711,0.66,156.71,156.69,7.00635347]
[1762443534909,6.38080653,156.72,156.68,7.00635347]
[1762443535211,0.66,156.71,156.68,7.00635347]
[1762443535397,0.66,156.71,156.67,7.00635347]
[1762443536219,0.66,156.71,156.66,7.00635347]
[1762443536431,0.66,156.71,156.67,7.00635347]
[1762443536932,29.987,156.73,156.69,7.00635347]
[1762443537095,6.38088982,156.72,156.7,7.00635347]
[1762443537297,29.987,156.73,156.7,7.00635347]
[1762443537510,37.027593,156.73,156.71,7.00635347]
[1762443537699,30.647,156.73,156.71,7.00635347]
[1762443538011,36.36746259,156.73,156.71,7.00635347]
[1762443538229,36.36746259,156.73,156.67,7.05252748]
[1762443538230,37.02746259,156.73,156.67,7.05252748]
[1762443538399,37.02746259,156.73,156.7,7.00635347]
[1762443539299,37.02746259,156.73,156.67,7.05252748]
[1762443539620,7.00635347,156.71,156.65,7.00635347]
[1762443539834,7.00635347,156.66,156.55,0.2190256]
[1762443540010,7.00635347,156.59,156.53,7.00635347]
[1762443540217,7.00635347,156.59,156.46,15.97767942]
[1762443540410,9.43831396,156.58,156.48,7.00635347]
[1762443540591,7.00635347,156.54,156.48,7.00635347]
[1762443541031,0.66,156.54,156.45,0.89067564]
[1762443541208,7.00635347,156.49,156.41,6.39309195]
[1762443541525,0.66,156.53,156.36,6.39545829]
[1762443541526,7.00635347,156.48,156.36,6.39545829]
[1762443541694,7.00635347,156.46,156.4,7.00635347]
[1762443542006,7.00635347,156.45,156.39,7.00635347]
[1762443542200,7.00635347,156.45,156.36,7.06545829]
[1762443542403,7.00635347,156.4,156.34,7.00635347]
[1762443542721,7.00635347,156.4,156.33,0.1]
[1762443542722,7.00635347,156.42,156.36,7.00635347]
[1762443542899,6.39386189,156.4,156.33,0.1]
[1762443543100,6.39386189,156.4,156.35,7.00635347]
[1762443543308,0.66,156.39,156.35,7.00635347]
[1762443543517,0.66,156.39,156.33,0.1]
[1762443543727,7.66635347,156.39,156.33,7.10635347]
[1762443544236,29.38487009,156.4,156.34,7.00635347]
[1762443544392,6.39339356,156.42,156.36,7.00635347]
[1762443544595,19.18,156.48,156.36,7.00635347]
[1762443544596,19.97861998,156.52,156.41,7.00635347]
[1762443544796,0.66,156.47,156.43,7.00635347]
[1762443545020,0.66,156.47,156.33,22.48850133]
[1762443545021,7.00635347,156.44,156.35,20.592]
[1762443545200,7.00635347,156.41,156.33,6.49670328]
[1762443545400,7.00635347,156.41,156.35,7.00635347]
[1762443545623,0.66,156.45,156.33,0.1]
[1762443545624,7.00635347,156.39,156.33,0.1]
[1762443545829,0.66,156.4,156.33,7.10635347]
[1762443545830,7.00635347,156.38,156.33,7.10635347]
[1762443546029,7.66635347,156.39,156.33,7.10635347]
[1762443546204,7.00635347,156.39,156.33,7.10635347]
[1762443546406,7.66635347,156.38,156.33,7.10635347]
[1762443546627,7.66635347,156.38,156.33,0.1]
[1762443546803,0.66,156.38,156.34,7.00635347]
[1762443546995,6.3934531,156.41,156.36,7.00635347]
[1762443547234,0.66,156.45,156.39,7.00635347]
[1762443547431,0.66,156.45,156.41,7.00635347]
[1762443547603,0.66,156.45,156.42,7.00635347]
[1762443548015,0.66,156.45,156.4,7.00635347]
[1762443548210,0.66,156.45,156.35,8.0]
[1762443548211,7.00635347,156.44,156.35,8.22144887]
[1762443548420,7.66635347,156.45,156.4,7.00635347]
[1762443548609,7.66635347,156.44,156.39,7.00635347]
[1762443548825,7.00635347,156.43,156.37,7.00635347]
[1762443549015,0.66,156.43,156.4,7.00635347]
[1762443549210,7.00635347,156.41,156.35,7.00635347]
[1762443549443,7.00635347,156.39,156.34,7.00635347]
[1762443549610,7.00635347,156.4,156.35,7.00635347]
[1762443549815,0.66,156.39,156.36,7.00635347]
[1762443550239,7.66635347,156.39,156.34,7.00635347]
[1762443550610,0.66,156.38,156.34,7.00635347]
[1762443550932,0.66,156.38,156.35,7.00635347]
[1762443551246,23.04176241,156.38,156.34,7.00635347]
[1762443551604,7.05506335,156.38,156.35,7.00635347]
[1762443551810,0.66,156.37,156.35,7.00635347]
[1762443552012,0.66,156.37,156.34,7.00635347]
[1762443552435,6.39506335,156.38,156.34,7.00635347]
[1762443552605,0.66,156.37,156.34,7.00635347]
[1762443552811,0.66,156.37,156.33,0.1]
[1762443553012,13.40185103,156.36,156.33,0.1]
[1762443553309,20.592,156.31,156.18,0.32242622]
[1762443553615,7.00635347,156.28,156.22,7.00635347]
[1762443553813,7.00635347,156.28,156.18,20.91442622]
[1762443553814,13.13388777,156.28,156.18,0.32242622]
[1762443554028,1.45989761,156.27,156.18,7.10635347]
[1762443554232,1.45989761,156.27,156.22,7.00635347]
[1762443554233,7.66635347,156.27,156.22,7.00635347]
[1762443554413,0.66,156.27,156.19,0.22355514]
[1762443554614,0.66,156.27,156.22,7.00635347]
[1762443554814,0.79948832,156.35,156.23,7.00635347]
[1762443555047,7.00635347,156.37,156.31,7.00635347]
[1762443555209,6.39555511,156.36,156.27,6.62160843]
[1762443555418,16.64540568,156.4,156.33,7.00635347]
[1762443555654,30.04489487,156.4,156.28,0.67]
[1762443555936,7.00635347,156.36,156.3,7.00635347]
[1762443556140,7.00635347,156.37,156.27,23.28956069]
[1762443556321,7.00635347,156.36,156.3,7.00635347]
[1762443556514,0.66,156.39,156.3,7.00635347]
[1762443556723,7.00635347,156.37,156.3,7.00635347]
[1762443556929,8.81943719,156.36,156.18,0.77]
[1762443557118,7.00635347,156.3,156.24,7.00635347]
[1762443557534,7.00635347,156.29,156.21,0.22312991]
[1762443557838,7.00635347,156.29,156.21,0.89312991]
[1762443558019,7.00635347,156.27,156.21,0.22312991]
[1762443558217,7.00635347,156.28,156.21,7.29440896]
[1762443558420,4.479192,156.26,156.21,0.22312991]
[1762443558629,4.479192,156.26,156.18,9.88882769]
[1762443558630,4.479192,156.26,156.19,0.22343842]
[1762443558840,0.66,156.29,156.19,7.29588419]
[1762443559029,6.39877143,156.28,156.19,23.30203055]
[1762443559228,0.66,156.29,156.19,23.30203055]
[1762443559431,4.479192,156.3,156.2,14.93801969]
[1762443559637,7.05754334,156.31,156.21,0.22330618]
[1762443560117,0.66,156.3,156.21,0.22330618]
[1762443560536,0.66,156.3,156.24,4.479192]
[1762443560940,6.39754334,156.31,156.25,0.22307279]
[1762443561149,6.39754334,156.31,156.26,6.39959042]
[1762443561345,10.87673534,156.31,156.25,0.22307279]
[1762443561540,10.87673534,156.31,156.24,4.479192]
[1762443561842,0.66,156.3,156.23,0.22301322]
[1762443562045,6.39679712,156.33,156.25,4.479192]
[1762443562248,11.53551341,156.34,156.27,4.479192]
[1762443562543,7.05632141,156.34,156.26,0.66]
[1762443562742,0.66,156.34,156.28,4.479192]
[1762443563123,7.05635343,156.34,156.27,4.70197194]
[1762443563332,4.479192,156.33,156.27,0.22277994]
[1762443563633,4.479192,156.36,156.29,4.479192]
[1762443563835,5.179192,156.36,156.29,4.479192]
[1762443564223,4.479192,156.35,156.28,4.479192]
[1762443564544,6.39549756,156.36,156.3,4.479192]
[1762443564848,6.39549756,156.36,156.29,4.7018113]
[1762443565043,11.57468956,156.36,156.29,4.479192]
[1762443565246,11.57468956,156.36,156.3,6.39795265]
[1762443565548,7.09549756,156.36,156.29,4.479192]
[1762443565731,11.57474016,156.36,156.29,4.70167916]
[1762443565936,4.479192,156.35,156.28,11.53770919]
[1762443566145,4.479192,156.33,156.27,6.62170345]
[1762443566449,4.479192,156.34,156.27,11.10089545]
[1762443566652,4.479192,156.34,156.27,0.2225312]
[1762443566950,0.7,156.34,156.27,4.479192]
[1762443567244,6.39672487,156.33,156.27,10.87820584]
[1762443567547,6.39672487,156.33,156.27,4.479192]
[1762443568347,11.57591687,156.33,156.26,18.93870008]
[1762443568851,7.09470019,156.38,156.31,4.479192]
[1762443569032,7.09470019,156.38,156.32,4.479192]
[1762443569234,0.7,156.41,156.33,11.0979589]
[1762443569448,8.04,156.43,156.29,0.2222541]
[1762443569449,4.479192,156.37,156.29,0.2222541]
[1762443569643,4.479192,156.36,156.29,11.09973739]
[1762443569830,4.479192,156.39,156.32,4.479192]
[1762443570023,4.479192,156.4,156.3,0.66]
[1762443570225,20.592,156.38,156.29,0.2222541]
[1762443570435,4.479192,156.37,156.31,4.479192]
[1762443570952,0.7,156.37,156.32,4.479192]
[1762443571449,22.38424148,156.36,156.3,4.479192]
[1762443571869,0.7,156.35,156.3,4.479192]
[1762443572158,0.7,156.35,156.26,8.72]
[1762443572159,4.479192,156.33,156.26,8.06]
[1762443572335,7.19493475,156.36,156.29,4.479192]
[1762443572532,0.7,156.38,156.34,4.479192]
[1762443572859,0.7,156.38,156.35,4.479192]
[1762443573156,0.7,156.38,156.34,4.479192]
[1762443573365,6.39508857,156.37,156.34,4.479192]
[1762443573533,0.7,156.36,156.33,4.479192]
[1762443573853,20.592,156.41,156.3,0.22251697]
[1762443573854,21.292,156.41,156.35,4.479192]
[1762443574087,21.292,156.41,156.38,4.479192]
[1762443574088,0.7,156.41,156.38,4.479192]
[1762443574357,4.479192,156.45,156.39,4.479192]
[1762443574358,6.39338437,156.42,156.39,4.479192]
[1762443574864,0.7,156.47,156.41,4.479192]
[1762443575163,0.7,156.47,156.34,8.26184361]
[1762443575164,0.7,156.46,156.37,0.88167047]
[1762443575365,22.37136465,156.45,156.35,0.88167047]
[1762443575528,22.37136465,156.45,156.37,4.479192]
[1762443575729,5.179192,156.44,156.37,4.479192]
[1762443575949,0.7,156.44,156.39,4.479192]
[1762443576160,0.7,156.44,156.4,4.479192]
[1762443576362,6.39181847,156.45,156.42,4.479192]
[1762443576855,7.07181847,156.45,156.42,4.479192]
[1762443577064,7.07181847,156.45,156.41,4.479192]
[1762443577237,23.05136465,156.45,156.36,0.22147873]
[1762443577568,23.05136465,156.45,156.4,4.479192]
[1762443577735,22.37136465,156.45,156.4,4.479192]
[1762443577940,0.68,156.44,156.38,4.479192]
[1762443578259,0.68,156.44,156.39,4.479192]
[1762443579070,0.68,156.44,156.4,4.479192]
[1762443579241,0.68,156.44,156.38,4.479192]
[1762443579440,6.39263568,156.43,156.38,4.479192]
[1762443579750,6.39263568,156.43,156.4,4.479192]
[1762443579751,22.37422488,156.43,156.4,4.479192]
[1762443579952,6.39263568,156.43,156.4,4.479192]
[1762443580155,0.68,156.46,156.41,4.479192]
[1762443580657,0.68,156.46,156.42,4.479192]
[1762443581166,23.0499348,156.46,156.41,4.479192]
[1762443581551,5.159192,156.45,156.38,4.479192]
[1762443581743,0.68,156.45,156.39,4.479192]
[1762443581945,4.479192,156.43,156.36,4.479192]
[1762443582139,4.479192,156.43,156.29,9.78882769]
[1762443582140,4.479192,156.4,156.33,4.479192]
[1762443582340,4.479192,156.37,156.31,4.479192]
[1762443582556,4.479192,156.38,156.32,4.479192]
[1762443582763,0.68,156.37,156.32,4.479192]
[1762443583247,6.39549756,156.36,156.32,4.479192]
[1762443583644,16.66775039,156.37,156.33,4.479192]
[1762443583645,6.39516556,156.37,156.33,4.479192]
[1762443583950,6.39516556,156.37,156.32,4.479192]
[1762443584151,6.39435984,156.39,156.36,4.479192]
[1762443584347,0.68,156.41,156.37,4.479192]
[1762443584552,7.07357865,156.41,156.32,0.69]
[1762443584871,8.0,156.44,156.4,4.479192]
[1762443584872,8.68,156.44,156.4,4.479192]
[1762443585045,6.39298832,156.43,156.34,9.78882769]
[1762443585371,7.07298832,156.43,156.39,4.479192]
[1762443585574,0.68,156.42,156.33,8.69]
[1762443585751,0.68,156.42,156.39,4.479192]
[1762443586470,6.39224666,156.44,156.36,0.69]
[1762443586647,7.07224666,156.44,156.4,4.479192]
[1762443587054,6.39224666,156.44,156.43,4.479192]
[1762443587254,6.39181847,156.45,156.42,4.479192]
[1762443587666,7.07181847,156.45,156.42,4.479192]
[1762443587878,0.68,156.45,156.42,4.479192]
[1762443588064,0.68,156.45,156.4,6.39382778]
[1762443588374,10.86986318,156.48,156.42,4.479192]
[1762443588547,0.68,156.44,156.39,4.479192]
[1762443588752,0.68,156.44,156.4,4.479192]
[1762443589046,0.68,156.44,156.39,4.479192]
[1762443589252,16.65750367,156.47,156.41,4.479192]
[1762443589453,4.479192,156.45,156.38,4.479192]
[1762443589756,0.68,156.46,156.41,4.479192]
[1762443589956,0.68,156.46,156.4,4.479192]
[1762443590446,25.071192,156.44,156.37,4.479192]
[1762443590654,25.071192,156.44,156.38,4.479192]
[1762443590948,0.68,156.43,156.36,4.479192]
[1762443591284,4.479192,156.4,156.34,8.0]
[1762443591779,0.68,156.4,156.35,4.479192]
[1762443592069,22.37708586,156.41,156.34,8.0]
[1762443592070,0.68,156.39,156.34,8.0]
[1762443592277,0.68,156.39,156.35,4.479192]
[1762443592475,0.68,156.39,156.34,8.0]
[1762443592476,0.68,156.39,156.36,4.479192]
[1762443592952,22.37708586,156.41,156.37,4.479192]
[1762443593153,22.37708586,156.41,156.34,8.68]
[1762443593484,0.7,156.4,156.35,4.479192]
[1762443593846,0.7,156.4,156.36,4.479192]
[1762443594053,0.7,156.4,156.3,9.78882769]
[1762443594054,4.479192,156.39,156.33,4.479192]
[1762443594279,0.7,156.4,156.34,4.479192]
[1762443594280,5.179192,156.4,156.34,4.479192]
[1762443594785,0.7,156.39,156.34,4.479192]
[1762443594952,0.7,156.39,156.35,4.479192]
[1762443595350,0.7,156.39,156.37,4.479192]
[1762443595551,0.7,156.39,156.33,6.39672487]
[1762443595552,6.39304436,156.42,156.38,4.479192]
[1762443595774,37.27333549,156.44,156.41,4.479192]
[1762443595775,6.39266117,156.43,156.41,4.479192]
[1762443596075,6.39266117,156.43,156.37,4.479192]
[1762443596076,0.7,156.43,156.37,4.479192]
[1762443596283,0.7,156.42,156.37,4.479192]
[1762443596598,4.479192,156.41,156.34,4.479192]
[1762443596785,0.7,156.42,156.27,10.46882769]
[1762443596786,4.479192,156.38,156.27,10.46882769]
[1762443596951,5.179192,156.37,156.3,4.479192]
[1762443597384,23.08424148,156.36,156.3,4.479192]
[1762443597559,4.479192,156.35,156.28,8.0]
[1762443597757,4.479192,156.35,156.28,12.479192]
[1762443597758,5.179192,156.35,156.28,12.479192]
[1762443597955,5.179192,156.34,156.25,0.68]
[1762443598156,5.179192,156.34,156.27,4.479192]
[1762443598366,0.7,156.33,156.27,4.479192]
[1762443598665,0.7,156.33,156.23,0.68]
[1762443598973,0.7,156.33,156.28,4.479192]
[1762443599171,0.7,156.33,156.29,4.479192]
[1762443599352,6.39713408,156.32,156.29,4.479192]
[1762443599673,0.7,156.33,156.26,0.68]
[1762443599984,0.7,156.33,156.29,4.479192]
[1762443600161,0.7,156.33,156.26,0.68]
[1762443600383,0.7,156.33,156.23,0.90290957]
[1762443600581,0.7,156.33,156.18,6.50272761]
[1762443600582,0.79964176,156.32,156.19,0.68]
[1762443600772,0.79964176,156.32,156.26,4.479192]
[1762443600971,20.592,156.35,156.3,4.479192]
[1762443601182,20.592,156.35,156.24,4.479192]
[1762443601183,0.7,156.4,156.33,4.479192]
[1762443601391,0.7,156.4,156.37,4.479192]
[1762443601600,0.7,156.44,156.34,0.68]
[1762443601807,7.09223889,156.44,156.41,4.479192]
[1762443602099,32.15026929,156.5,156.43,4.479192]
[1762443602100,0.2,156.5,156.43,4.479192]
[1762443602406,0.7,156.47,156.36,0.22119888]
[1762443602696,0.7,156.47,156.44,4.479192]
[1762443603065,7.28978496,156.5,156.45,4.479192]
[1762443603265,0.7,156.49,156.38,10.46882769]
[1762443603580,0.7,156.49,156.36,10.01029065]
[1762443603581,4.479192,156.48,156.36,10.01029065]
[1762443603986,4.479192,156.48,156.35,0.68]
[1762443603987,20.592,156.45,156.39,4.479192]
[1762443604373,8.0,156.48,156.4,4.479192]
[1762443604573,8.0,156.48,156.37,0.68]
[1762443604574,0.7,156.47,156.42,4.479192]
[1762443604996,22.56426117,156.5,156.44,4.479192]
[1762443605201,0.7,156.49,156.45,4.479192]
[1762443605499,6.39059304,156.48,156.45,4.479192]
[1762443605696,7.09019823,156.49,156.47,4.479192]
[1762443605878,7.09019823,156.49,156.45,4.479192]
[1762443606083,0.2,156.5,156.42,26.85480795]
[1762443606397,6.58983675,156.5,156.48,4.479192]
[1762443606699,6.58983675,156.5,156.47,4.479192]
[1762443606870,7.28983675,156.5,156.46,4.479192]
[1762443607200,0.7,156.49,156.45,4.479192]
[1762443607494,6.39059304,156.48,156.45,4.479192]
[1762443607874,0.7,156.47,156.45,4.479192]
[1762443608076,6.58978647,156.5,156.46,4.479192]
[1762443608281,6.58978647,156.5,156.48,4.479192]
[1762443608504,0.2,156.5,156.49,4.479192]
[1762443609293,0.2,156.5,156.47,6.39095939]
[1762443609506,0.2,156.5,156.49,4.479192]
[1762443609908,0.2,156.5,156.49,5.159192]
[1762443610210,0.2,156.5,156.49,4.479192]
[1762443610708,0.2,156.5,156.48,0.2207653]
[1762443610909,0.2,156.5,156.49,4.479192]
[1762443611315,0.2,156.5,156.33,17.916768]
[1762443611316,7.28977635,156.5,156.36,0.22086411]
[1762443611623,24.06293928,156.5,156.42,4.479192]
[1762443611903,24.06293928,156.5,156.37,0.68]
[1762443611904,0.7,156.49,156.44,4.479192]
[1762443612108,0.7,156.49,156.39,20.592]
[1762443612324,5.179192,156.49,156.42,4.479192]
[1762443612502,4.479192,156.47,156.41,4.479192]
[1762443612813,6.58977635,156.5,156.38,0.22141899]
[1762443612985,4.679192,156.5,156.45,4.479192]
[1762443613315,10.87019346,156.47,156.41,4.479192]
[1762443613624,4.479192,156.45,156.36,7.29653496]
[1762443613785,4.479192,156.44,156.36,8.90141899]
[1762443614128,5.179192,156.46,156.4,4.479192]
[1762443614420,5.179192,156.46,156.41,4.479192]
[1762443614594,0.7,156.45,156.37,0.68]
[1762443614908,22.36850513,156.47,156.42,4.479192]
[1762443615115,0.7,156.47,156.42,4.479192]
[1762443615289,11.57076913,156.46,156.41,4.479192]
[1762443615491,7.09157713,156.46,156.42,4.479192]
[1762443615722,0.7,156.49,156.44,4.479192]
[1762443616016,4.479192,156.47,156.42,4.479192]
[1762443616237,4.479192,156.44,156.36,14.39517765]
[1762443616394,4.479192,156.44,156.35,7.07581141]
[1762443616591,4.479192,156.46,156.41,4.479192]
[1762443616792,23.06716528,156.48,156.43,4.479192]
[1762443617007,0.7,156.48,156.45,4.479192]
[1762443617200,5.179192,156.47,156.42,4.479192]
[1762443617398,6.39140994,156.46,156.42,4.479192]
[1762443617607,11.57060194,156.46,156.41,4.479192]
[1762443617918,0.7,156.45,156.4,4.479192]
[1762443618218,5.179192,156.45,156.37,6.39507371]
[1762443618432,7.02505627,156.44,156.39,7.02505627]
[1762443618729,7.02505627,156.44,156.34,7.02505627]
[1762443618730,7.02505627,156.4,156.34,7.02505627]
[1762443619016,7.72505627,156.39,156.33,7.02505627]
[1762443619327,0.79907946,156.43,156.37,7.02505627]
[1762443619507,7.02505627,156.42,156.36,7.02505627]
[1762443619707,7.0926616,156.43,156.36,7.02505627]
[1762443619708,7.02505627,156.41,156.36,7.02505627]
[1762443620203,7.02505627,156.39,156.3,0.68]
[1762443620410,7.02505627,156.39,156.34,7.02505627]
[1762443620599,7.72505627,156.39,156.34,7.02505627]
[1762443620918,0.7,156.38,156.34,7.02505627]
[1762443621119,0.7,156.38,156.3,0.90216463]
[1762443621503,21.292,156.4,156.35,7.02505627]
[1762443621700,0.79892624,156.46,156.32,9.78882769]
[1762443621902,0.7,156.46,156.33,0.22190183]
[1762443622101,7.02505627,156.44,156.33,0.90190183]
[1762443622321,22.09092624,156.46,156.33,0.68]
[1762443622499,0.66,156.45,156.39,7.02505627]
[1762443622710,0.66,156.45,156.34,0.91184361]
[1762443623014,0.66,156.45,156.35,0.69]
[1762443623202,0.66,156.47,156.36,10.0105989]
[1762443623406,0.66,156.47,156.44,7.02505627]
[1762443623804,16.17444089,156.5,156.45,7.02505627]
[1762443623805,0.86,156.5,156.45,7.02505627]
[1762443624006,0.2,156.5,156.48,7.02505627]
[1762443624306,0.2,156.5,156.49,7.02505627]
[1762443624619,0.2,156.5,156.45,0.22085163]
[1762443624793,0.2,156.5,156.49,7.02505627]
[1762443624993,0.66,156.49,156.47,7.02505627]
[1762443625316,0.66,156.49,156.42,0.22085163]
[1762443625507,7.02505627,156.45,156.4,7.02505627]
[1762443625829,0.66,156.49,156.44,7.02505627]
[1762443625997,0.66,156.49,156.41,0.69]
[1762443626514,0.2,156.5,156.48,7.02505627]
[1762443626704,0.2,156.5,156.49,7.24585145]
[1762443627108,0.66,156.59,156.49,7.93585145]
[1762443627431,0.66,156.59,156.5,0.58]
[1762443627591,0.66,156.59,156.55,7.02505627]
[1762443627796,0.66,156.59,156.5,0.8000773]
[1762443628121,14.07117744,156.59,156.53,7.02505627]
[1762443628326,0.2,156.6,156.58,7.02505627]
[1762443628622,0.2,156.6,156.57,7.02505627]
[1762443628821,0.2,156.6,156.59,7.02505627]
[1762443629001,0.2,156.6,156.53,0.79990319]
[1762443629330,0.2,156.6,156.42,57.02505627]
[1762443629331,7.02505627,156.59,156.54,7.02505627]
[1762443629497,7.02505627,156.57,156.49,8.0]
[1762443629694,7.68505627,156.57,156.51,7.02505627]
[1762443629999,0.66,156.57,156.52,7.02505627]
[1762443630215,0.66,156.56,156.51,7.02505627]
[1762443630519,0.66,156.56,156.52,7.02505627]
[1762443630712,22.35170669,156.59,156.49,6.39004556]
[1762443630713,0.66,156.59,156.54,7.02505627]
[1762443630916,7.68505627,156.55,156.43,0.8003553]
[1762443631135,7.02505627,156.5,156.44,7.02505627]
[1762443631304,7.02505627,156.48,156.42,7.02505627]
[1762443631631,7.02505627,156.43,156.32,0.58]
[1762443631794,7.02505627,156.41,156.32,6.97693085]
[1762443631999,0.66,156.42,156.31,6.39746797]
[1762443632000,7.02505627,156.4,156.31,6.39746797]
[1762443632223,7.02505627,156.37,156.31,7.02505627]
[1762443632520,0.79943719,156.36,156.23,0.80228122]
[1762443632722,0.66,156.35,156.23,21.172]
[1762443633024,7.02505627,156.32,156.22,6.40122903]
[1762443633227,7.02505627,156.31,156.25,7.02505627]
[1762443633437,7.02505627,156.3,156.24,7.02505627]
[1762443633603,6.39740196,156.32,156.23,7.02505627]
[1762443633604,7.02505627,156.29,156.23,7.02505627]
[1762443633797,20.592,156.29,156.18,0.1]
[1762443634023,7.02505627,156.25,156.19,7.02505627]
[1762443634537,0.66,156.24,156.19,7.02505627]
[1762443634839,0.66,156.24,156.18,0.1]
[1762443635005,0.66,156.24,156.19,7.02505627]
[1762443635203,0.79974408,156.3,156.18,0.1]
[1762443635421,20.592,156.28,156.18,0.1]
[1762443635608,10.44882769,156.29,156.22,7.02505627]
[1762443635609,1.45979525,156.29,156.22,7.02505627]
[1762443635805,0.66,156.28,156.25,7.02505627]
[1762443636130,0.66,156.28,156.2,7.02505627]
[1762443636296,7.68505627,156.28,156.22,7.02505627]
[1762443636496,7.68505627,156.27,156.22,7.02505627]
[1762443636722,0.66,156.27,156.22,7.02505627]
[1762443636928,0.71,156.26,156.22,7.02505627]
[1762443637228,0.71,156.29,156.24,7.02505627]
[1762443637402,0.71,156.29,156.26,7.02505627]
[1762443637730,0.71,156.32,156.27,7.02505627]
[1762443637931,21.302,156.32,156.22,16.00214712]
[1762443638135,7.02505627,156.31,156.2,14.40189116]
[1762443638302,0.71,156.31,156.27,7.02505627]
[1762443638503,0.71,156.35,156.3,7.02505627]
[1762443638815,0.71,156.35,156.32,7.02505627]
[1762443639138,7.02505627,156.33,156.22,8.0]
[1762443639317,7.02505627,156.31,156.22,8.0]
[1762443639520,7.02505627,156.31,156.25,7.02505627]
[1762443639738,0.71,156.3,156.22,14.40101116]
[1762443640033,0.71,156.3,156.26,7.02505627]
[1762443640339,0.71,156.3,156.27,7.02505627]
[1762443640635,0.71,156.3,156.22,14.401218]
[1762443640836,0.71,156.3,156.22,31.20752291]
[1762443641042,0.71,156.33,156.29,7.02505627]
[1762443641220,0.71,156.33,156.31,7.02505627]
[1762443641418,0.71,156.33,156.24,6.40010379]
[1762443641667,0.71,156.33,156.22,24.00307258]
[1762443641668,0.71,156.33,156.22,8.22298343]
[1762443641810,7.02505627,156.31,156.2,14.00710492]
[1762443642010,7.02505627,156.31,156.26,7.02505627]
[1762443642220,7.02505627,156.31,156.25,7.02505627]
[1762443642221,0.71,156.3,156.25,7.02505627]
[1762443642424,0.71,156.3,156.28,7.02505627]
[1762443642627,0.71,156.3,156.27,7.02505627]
[1762443643251,0.71,156.3,156.2,8.22301199]
[1762443643534,0.71,156.3,156.23,7.02505627]
[1762443643535,1.50974408,156.3,156.23,7.02505627]
[1762443643725,1.5095906,156.33,156.29,7.02505627]
[1762443643928,0.71,156.36,156.32,7.02505627]
[1762443644245,0.71,156.36,156.27,20.592]
[1762443644539,0.71,156.36,156.32,7.02505627]
[1762443644846,0.71,156.36,156.34,7.02505627]
[1762443645008,0.71,156.4,156.35,7.02505627]
[1762443645214,0.71,156.4,156.36,7.02505627]
[1762443645467,0.71,156.4,156.3,8.02]
[1762443645468,0.71,156.4,156.35,7.02505627]
[1762443645662,0.71,156.4,156.36,7.02505627]
[1762443645861,0.71,156.4,156.35,7.02505627]
[1762443646168,0.71,156.4,156.37,7.02505627]
[1762443646467,0.71,156.4,156.31,30.00645796]
[1762443646468,0.71,156.4,156.31,14.01259961]
[1762443646640,0.71,156.4,156.34,7.02505627]
[1762443646840,0.71,156.4,156.37,7.02505627]
[1762443647369,0.7,156.39,156.37,7.02505627]
[1762443647662,7.72505627,156.39,156.34,7.02505627]
[1762443647866,7.02505627,156.38,156.29,8.02]
[1762443648069,0.7,156.37,156.33,7.02505627]